[Event "Titled Tuesday Blitz August 15 Late 2023"]
[White "Fedoseev, Vladimir"]
[Black "Rasulov, Vugar"]
[WhiteFideId "24130737"]
[BlackFideId "13402390"]
[WhiteElo "3117"]
[BlackElo "2887"]
[Result "1-0"]
[Round "5"]
[TimeControl "180+1"]
[Date "2023.08.15"]
[WhiteClock "0:00:15"]
[BlackClock "0:00:00"]
[Board "9"]

1. b3 {[%clk 0:02:52]}  e5 {[%clk 0:02:59]} 2. Bb2 {[%clk 0:02:52]}  Nc6 {[%clk 0:03:00]} 3. e3 {[%clk 0:02:53]}  g6 {[%clk 0:02:59]} 4. Nf3 {[%clk 0:02:50]}  Bg7 {[%clk 0:02:59]} 5. c4 {[%clk 0:02:49]}  Nge7 {[%clk 0:02:57]} 6. d4 {[%clk 0:02:49]}  d6 {[%clk 0:02:55]} 7. Be2 {[%clk 0:02:44]}  O-O {[%clk 0:02:54]} 8. O-O {[%clk 0:02:43]}  h6 {[%clk 0:02:42]} 9. d5 {[%clk 0:02:24]}  Nb8 {[%clk 0:02:41]} 10. e4 {[%clk 0:02:20]}  f5 {[%clk 0:02:39]} 11. Nbd2 {[%clk 0:02:16]}  Nd7 {[%clk 0:02:36]} 12. exf5 {[%clk 0:02:11]}  gxf5 {[%clk 0:02:32]} 13. Nh4 {[%clk 0:02:09]}  Bf6 {[%clk 0:02:22]} 14. Nhf3 {[%clk 0:01:56]}  Ng6 {[%clk 0:02:14]} 15. Re1 {[%clk 0:01:54]}  Kh7 {[%clk 0:02:08]} 16. Qc2 {[%clk 0:01:50]}  e4 {[%clk 0:01:58]} 17. Nd4 {[%clk 0:01:47]}  Bxd4 {[%clk 0:01:48]} 18. Bxd4 {[%clk 0:01:46]}  Nde5 {[%clk 0:01:49]} 19. f3 {[%clk 0:01:44]}  Nf4 {[%clk 0:01:35]} 20. fxe4 {[%clk 0:01:41]}  Rg8 {[%clk 0:01:25]} 21. Bf1 {[%clk 0:01:38]}  Qh4 {[%clk 0:01:00]} 22. Qc3 {[%clk 0:01:06]}  fxe4 {[%clk 0:00:54]} 23. Nxe4 {[%clk 0:00:44]}  Bf5 {[%clk 0:00:27]} 24. Bxe5 {[%clk 0:00:44]}  dxe5 {[%clk 0:00:20]} 25. Ng3 {[%clk 0:00:42]}  Raf8 {[%clk 0:00:15]} 26. Qxe5 {[%clk 0:00:37]}  Rxg3 {[%clk 0:00:15]} 27. hxg3 {[%clk 0:00:36]}  Qxg3 {[%clk 0:00:16]} 28. Qe7+ {[%clk 0:00:18]}  Kg6 {[%clk 0:00:12]} 29. Kh1 {[%clk 0:00:17]}  Rf6 {[%clk 0:00:07]} 30. Qe8+ {[%clk 0:00:16]}  Kg5 {[%clk 0:00:07]} 31. Qe3 {[%clk 0:00:16]}  Qh4+ {[%clk 0:00:04]} 32. Kg1 {[%clk 0:00:17]}  Kh5 {[%clk 0:00:03]} 33. g3 {[%clk 0:00:16]}  Rg6 {[%clk 0:00:02]} 34. Qf3+ {[%clk 0:00:16]}  Bg4 {[%clk 0:00:01]} 35. Qxf4 {[%clk 0:00:15]}  Qg5 {[%clk 0:00:00]} 36. Qxg5+ {[%clk 0:00:15]} 1-0


[Site "https://www.chess.com"]

[Event "Titled Tuesday Blitz August 15 Late 2023"]
[White "Xiong, Jeffery"]
[Black "Pakleza, Zbigniew"]
[WhiteFideId "2047640"]
[BlackFideId "1119290"]
[WhiteElo "2974"]
[BlackElo "2824"]
[Result "1-0"]
[Round "5"]
[TimeControl "180+1"]
[Date "2023.08.15"]
[WhiteClock "0:00:16"]
[BlackClock "0:00:00"]
[Board "11"]

1. e4 {[%clk 0:03:00]}  d6 {[%clk 0:02:58]} 2. d4 {[%clk 0:03:00]}  Nf6 {[%clk 0:02:58]} 3. Nc3 {[%clk 0:03:01]}  c6 {[%clk 0:02:58]} 4. Nf3 {[%clk 0:02:55]}  Bg4 {[%clk 0:02:57]} 5. h3 {[%clk 0:02:54]}  Bh5 {[%clk 0:02:57]} 6. g4 {[%clk 0:02:44]}  Bg6 {[%clk 0:02:57]} 7. Bd3 {[%clk 0:02:45]}  e6 {[%clk 0:02:57]} 8. Be3 {[%clk 0:02:30]}  d5 {[%clk 0:02:58]} 9. e5 {[%clk 0:02:30]}  Nfd7 {[%clk 0:02:58]} 10. Ne2 {[%clk 0:02:29]}  c5 {[%clk 0:02:56]} 11. c3 {[%clk 0:02:30]}  Nc6 {[%clk 0:02:57]} 12. Nf4 {[%clk 0:02:27]}  Bxd3 {[%clk 0:02:51]} 13. Nxd3 {[%clk 0:02:26]}  cxd4 {[%clk 0:02:49]} 14. cxd4 {[%clk 0:02:27]}  Be7 {[%clk 0:02:34]} 15. O-O {[%clk 0:02:20]}  Rc8 {[%clk 0:02:31]} 16. a3 {[%clk 0:02:17]}  O-O {[%clk 0:02:28]} 17. b4 {[%clk 0:02:15]}  Nb6 {[%clk 0:02:20]} 18. Re1 {[%clk 0:02:11]}  Nc4 {[%clk 0:02:20]} 19. Bf4 {[%clk 0:02:09]}  a5 {[%clk 0:02:13]} 20. b5 {[%clk 0:02:06]}  Nb8 {[%clk 0:02:13]} 21. a4 {[%clk 0:01:52]}  Nd7 {[%clk 0:02:13]} 22. Qb3 {[%clk 0:01:50]}  Qb6 {[%clk 0:02:05]} 23. Kg2 {[%clk 0:01:47]}  Rc7 {[%clk 0:02:02]} 24. h4 {[%clk 0:01:47]}  Rfc8 {[%clk 0:02:02]} 25. h5 {[%clk 0:01:46]}  h6 {[%clk 0:01:26]} 26. Rec1 {[%clk 0:01:36]}  Nf8 {[%clk 0:01:21]} 27. Kg3 {[%clk 0:01:18]}  Nh7 {[%clk 0:01:21]} 28. Rc3 {[%clk 0:00:50]}  Nd6 {[%clk 0:00:49]} 29. Rxc7 {[%clk 0:00:39]}  Ne4+ {[%clk 0:00:48]} 30. Kg2 {[%clk 0:00:40]}  Qxc7 {[%clk 0:00:43]} 31. Rc1 {[%clk 0:00:40]}  Qd8 {[%clk 0:00:36]} 32. Rc2 {[%clk 0:00:40]}  Rc7 {[%clk 0:00:23]} 33. Ng1 {[%clk 0:00:39]}  Qc8 {[%clk 0:00:21]} 34. Rxc7 {[%clk 0:00:39]}  Qxc7 {[%clk 0:00:22]} 35. Ne2 {[%clk 0:00:40]}  Qc4 {[%clk 0:00:15]} 36. Qxc4 {[%clk 0:00:40]}  dxc4 {[%clk 0:00:16]} 37. Nb2 {[%clk 0:00:41]}  c3 {[%clk 0:00:11]} 38. Nc4 {[%clk 0:00:41]}  Bb4 {[%clk 0:00:08]} 39. f3 {[%clk 0:00:22]}  Nd2 {[%clk 0:00:08]} 40. Nd6 {[%clk 0:00:22]}  Bxd6 {[%clk 0:00:04]} 41. exd6 {[%clk 0:00:22]}  Nf8 {[%clk 0:00:04]} 42. Nxc3 {[%clk 0:00:22]}  Nc4 {[%clk 0:00:03]} 43. Ne4 {[%clk 0:00:19]}  b6 {[%clk 0:00:01]} 44. Nc5 {[%clk 0:00:16]}  bxc5 {[%clk 0:00:01]} 45. dxc5 {[%clk 0:00:17]}  Nd7 {[%clk 0:00:01]} 46. c6 {[%clk 0:00:16]}  Ncb6 {[%clk 0:00:02]} 47. Be3 {[%clk 0:00:15]}  Kf8 {[%clk 0:00:02]} 48. cxd7 {[%clk 0:00:15]}  Nxd7 {[%clk 0:00:03]} 49. Bd2 {[%clk 0:00:15]}  Nb6 {[%clk 0:00:02]} 50. Bxa5 {[%clk 0:00:16]}  Nxa4 {[%clk 0:00:00]} 51. d7 {[%clk 0:00:16]} 1-0


[Site "https://www.chess.com"]

[Event "Titled Tuesday Blitz August 15 Late 2023"]
[White "Bortnyk, Olexandr"]
[Black "Jaracz, Pawel"]
[WhiteFideId "14120828"]
[BlackFideId "1102222"]
[WhiteElo "3078"]
[BlackElo "2730"]
[Result "1-0"]
[Round "5"]
[TimeControl "180+1"]
[Date "2023.08.15"]
[WhiteClock "0:02:58"]
[BlackClock "0:01:00"]
[Board "14"]

1. d4 {[%clk 0:03:00]}  d5 {[%clk 0:02:54]} 2. Nc3 {[%clk 0:03:01]}  c6 {[%clk 0:02:54]} 3. Bf4 {[%clk 0:03:02]}  Qb6 {[%clk 0:02:54]} 4. Rb1 {[%clk 0:03:02]}  Bf5 {[%clk 0:02:54]} 5. e3 {[%clk 0:03:02]}  e6 {[%clk 0:02:53]} 6. Nf3 {[%clk 0:03:03]}  Nd7 {[%clk 0:02:53]} 7. Bd3 {[%clk 0:03:02]}  Bg6 {[%clk 0:02:53]} 8. h4 {[%clk 0:03:01]}  Ngf6 {[%clk 0:02:52]} 9. Ne5 {[%clk 0:03:02]}  Be7 {[%clk 0:02:50]} 10. h5 {[%clk 0:03:02]}  Bxd3 {[%clk 0:02:49]} 11. cxd3 {[%clk 0:03:03]}  Nxe5 {[%clk 0:02:47]} 12. Bxe5 {[%clk 0:03:03]}  O-O {[%clk 0:02:35]} 13. O-O {[%clk 0:03:03]}  Nd7 {[%clk 0:02:34]} 14. Qg4 {[%clk 0:03:01]}  Nxe5 {[%clk 0:02:32]} 15. dxe5 {[%clk 0:03:02]}  Rae8 {[%clk 0:02:21]} 16. h6 {[%clk 0:03:01]}  g6 {[%clk 0:02:21]} 17. d4 {[%clk 0:03:01]}  c5 {[%clk 0:02:05]} 18. Ne2 {[%clk 0:03:01]}  Qa6 {[%clk 0:01:56]} 19. a3 {[%clk 0:03:00]}  Qd3 {[%clk 0:01:46]} 20. dxc5 {[%clk 0:02:59]}  Bxc5 {[%clk 0:01:44]} 21. Rbc1 {[%clk 0:02:59]}  Rc8 {[%clk 0:01:43]} 22. Rc3 {[%clk 0:02:58]}  Qf5 {[%clk 0:01:10]} 23. Qxf5 {[%clk 0:02:57]}  gxf5 {[%clk 0:01:00]} 24. Rfc1 {[%clk 0:02:58]} 1-0


[Site "https://www.chess.com"]

[Event "Titled Tuesday Blitz August 15 Late 2023"]
[White "Hua, Lefong"]
[Black "Shimanov, Aleksandr"]
[WhiteFideId "2602253"]
[BlackFideId "4198603"]
[WhiteElo "2707"]
[BlackElo "3033"]
[Result "0-1"]
[Round "5"]
[TimeControl "180+1"]
[Date "2023.08.15"]
[WhiteClock "0:00:13"]
[BlackClock "0:00:30"]
[Board "16"]

1. d4 {[%clk 0:02:59]}  d5 {[%clk 0:02:57]} 2. c4 {[%clk 0:02:59]}  dxc4 {[%clk 0:02:57]} 3. Nf3 {[%clk 0:02:59]}  a6 {[%clk 0:02:57]} 4. e3 {[%clk 0:02:58]}  b5 {[%clk 0:02:57]} 5. a4 {[%clk 0:02:58]}  Bb7 {[%clk 0:02:58]} 6. b3 {[%clk 0:02:54]}  e6 {[%clk 0:02:57]} 7. axb5 {[%clk 0:02:47]}  axb5 {[%clk 0:02:57]} 8. Rxa8 {[%clk 0:02:48]}  Bxa8 {[%clk 0:02:58]} 9. bxc4 {[%clk 0:02:48]}  bxc4 {[%clk 0:02:59]} 10. Bxc4 {[%clk 0:02:48]}  Nd7 {[%clk 0:02:58]} 11. O-O {[%clk 0:02:48]}  Ngf6 {[%clk 0:02:58]} 12. Ba3 {[%clk 0:02:44]}  Bd6 {[%clk 0:02:57]} 13. Bxd6 {[%clk 0:02:40]}  cxd6 {[%clk 0:02:58]} 14. Nbd2 {[%clk 0:02:38]}  O-O {[%clk 0:02:57]} 15. Qb3 {[%clk 0:02:29]}  Qc7 {[%clk 0:02:53]} 16. Rb1 {[%clk 0:02:20]}  Bxf3 {[%clk 0:02:49]} 17. gxf3 {[%clk 0:02:13]}  Rc8 {[%clk 0:02:38]} 18. Qb7 {[%clk 0:02:01]}  g6 {[%clk 0:02:28]} 19. Qxc7 {[%clk 0:01:57]}  Rxc7 {[%clk 0:02:29]} 20. Kf1 {[%clk 0:01:50]}  Kg7 {[%clk 0:02:22]} 21. Ke2 {[%clk 0:01:49]}  Ra7 {[%clk 0:02:21]} 22. Rb2 {[%clk 0:01:35]}  Ra1 {[%clk 0:02:19]} 23. Rb1 {[%clk 0:01:35]}  Ra5 {[%clk 0:02:19]} 24. Rb5 {[%clk 0:01:34]}  Ra7 {[%clk 0:02:18]} 25. Rb2 {[%clk 0:01:32]}  g5 {[%clk 0:02:11]} 26. Ra2 {[%clk 0:01:25]}  Rc7 {[%clk 0:02:10]} 27. Ra6 {[%clk 0:01:21]}  d5 {[%clk 0:02:08]} 28. Bb5 {[%clk 0:01:20]}  Nf8 {[%clk 0:02:07]} 29. Bd3 {[%clk 0:01:16]}  Rc1 {[%clk 0:02:04]} 30. Nf1 {[%clk 0:01:11]}  h5 {[%clk 0:01:56]} 31. h3 {[%clk 0:01:07]}  N8d7 {[%clk 0:01:47]} 32. Ra2 {[%clk 0:01:01]}  Rc7 {[%clk 0:01:43]} 33. Rc2 {[%clk 0:01:00]}  Rb7 {[%clk 0:01:43]} 34. Nd2 {[%clk 0:00:59]}  Ra7 {[%clk 0:01:41]} 35. Rb2 {[%clk 0:00:58]}  Rc7 {[%clk 0:01:34]} 36. Rc2 {[%clk 0:00:53]}  Rb7 {[%clk 0:01:33]} 37. Ra2 {[%clk 0:00:53]}  Nb8 {[%clk 0:01:34]} 38. Ra1 {[%clk 0:00:51]}  Nc6 {[%clk 0:01:33]} 39. Rb1 {[%clk 0:00:50]}  Ra7 {[%clk 0:01:32]} 40. Bb5 {[%clk 0:00:47]}  Ne7 {[%clk 0:01:32]} 41. Bd3 {[%clk 0:00:45]}  Nc8 {[%clk 0:01:32]} 42. Rc1 {[%clk 0:00:44]}  Nb6 {[%clk 0:01:30]} 43. Rb1 {[%clk 0:00:34]}  Nc8 {[%clk 0:01:26]} 44. Rc1 {[%clk 0:00:34]}  Nd6 {[%clk 0:01:27]} 45. Rc2 {[%clk 0:00:31]}  Ra1 {[%clk 0:01:23]} 46. Nf1 {[%clk 0:00:31]}  Kf8 {[%clk 0:01:15]} 47. Kd2 {[%clk 0:00:26]}  Ke7 {[%clk 0:01:09]} 48. Rc1 {[%clk 0:00:26]}  Ra7 {[%clk 0:01:09]} 49. Rc2 {[%clk 0:00:26]}  Nd7 {[%clk 0:01:07]} 50. Rb2 {[%clk 0:00:23]}  f5 {[%clk 0:01:07]} 51. Ke2 {[%clk 0:00:23]}  Nf6 {[%clk 0:01:07]} 52. Nd2 {[%clk 0:00:21]}  h4 {[%clk 0:01:06]} 53. Rc2 {[%clk 0:00:19]}  Rb7 {[%clk 0:01:02]} 54. Rc1 {[%clk 0:00:19]}  Nd7 {[%clk 0:00:58]} 55. Rb1 {[%clk 0:00:19]}  Rc7 {[%clk 0:00:58]} 56. Rb2 {[%clk 0:00:19]}  Kf6 {[%clk 0:00:57]} 57. Rc2 {[%clk 0:00:19]}  Ra7 {[%clk 0:00:45]} 58. Rc6 {[%clk 0:00:19]}  Ke7 {[%clk 0:00:45]} 59. e4 {[%clk 0:00:18]}  f4 {[%clk 0:00:35]} 60. e5 {[%clk 0:00:17]}  Nf7 {[%clk 0:00:35]} 61. Rc2 {[%clk 0:00:17]}  Rb7 {[%clk 0:00:34]} 62. Nf1 {[%clk 0:00:15]}  Rb4 {[%clk 0:00:34]} 63. Nh2 {[%clk 0:00:14]}  Rxd4 {[%clk 0:00:34]} 64. Rc7 {[%clk 0:00:14]}  Nxe5 {[%clk 0:00:34]} 65. Bb5 {[%clk 0:00:14]}  Kd6 {[%clk 0:00:34]} 66. Ra7 {[%clk 0:00:14]}  Rb4 {[%clk 0:00:34]} 67. Bxd7 {[%clk 0:00:14]}  Nxd7 {[%clk 0:00:34]} 68. Ng4 {[%clk 0:00:15]}  Rb6 {[%clk 0:00:32]} 69. Ra8 {[%clk 0:00:14]}  Ne5 {[%clk 0:00:31]} 70. Rg8 {[%clk 0:00:13]}  Rb2+ {[%clk 0:00:31]} 71. Kf1 {[%clk 0:00:13]}  Nxf3 {[%clk 0:00:31]} 72. Rd8+ {[%clk 0:00:13]}  Ke7 {[%clk 0:00:31]} 73. Rh8 {[%clk 0:00:13]}  e5 {[%clk 0:00:31]} 74. Rh7+ {[%clk 0:00:13]}  Kd6 {[%clk 0:00:30]} 75. Rh6+ {[%clk 0:00:14]}  Kc5 {[%clk 0:00:30]} 76. Kg2 {[%clk 0:00:14]}  e4 {[%clk 0:00:31]} 77. Ra6 {[%clk 0:00:14]}  Rb1 {[%clk 0:00:31]} 78. Ra5+ {[%clk 0:00:13]}  Kb6 {[%clk 0:00:30]} 0-1


[Site "https://www.chess.com"]

[Event "Titled Tuesday Blitz August 15 Late 2023"]
[White "Hoang, Thi Bao Tram"]
[Black "Kramnik, Vladimir"]
[WhiteFideId "12401102"]
[BlackFideId "4101588"]
[WhiteElo "2677"]
[BlackElo "2946"]
[Result "0-1"]
[Round "5"]
[TimeControl "180+1"]
[Date "2023.08.15"]
[WhiteClock "0:00:06"]
[BlackClock "0:00:05"]
[Board "20"]

1. Nf3 {[%clk 0:03:00]}  c5 {[%clk 0:02:54]} 2. g3 {[%clk 0:02:58]}  g6 {[%clk 0:02:52]} 3. Bg2 {[%clk 0:02:58]}  Bg7 {[%clk 0:02:52]} 4. O-O {[%clk 0:02:57]}  Nc6 {[%clk 0:02:52]} 5. c3 {[%clk 0:02:57]}  e5 {[%clk 0:02:51]} 6. d3 {[%clk 0:02:51]}  Nge7 {[%clk 0:02:50]} 7. Be3 {[%clk 0:02:39]}  d6 {[%clk 0:02:40]} 8. Qc1 {[%clk 0:02:23]}  O-O {[%clk 0:02:28]} 9. Bh6 {[%clk 0:02:22]}  f5 {[%clk 0:02:27]} 10. Bxg7 {[%clk 0:02:21]}  Kxg7 {[%clk 0:02:27]} 11. Nbd2 {[%clk 0:02:20]}  d5 {[%clk 0:02:21]} 12. e4 {[%clk 0:02:15]}  dxe4 {[%clk 0:02:02]} 13. dxe4 {[%clk 0:02:14]}  f4 {[%clk 0:02:03]} 14. Nc4 {[%clk 0:02:13]}  Qc7 {[%clk 0:02:03]} 15. a4 {[%clk 0:02:06]}  Be6 {[%clk 0:02:02]} 16. Na3 {[%clk 0:01:46]}  Rad8 {[%clk 0:01:57]} 17. b4 {[%clk 0:01:45]}  h6 {[%clk 0:01:49]} 18. Qb2 {[%clk 0:01:42]}  g5 {[%clk 0:01:46]} 19. Rfd1 {[%clk 0:01:37]}  Ng6 {[%clk 0:01:42]} 20. Nb5 {[%clk 0:01:26]}  Qe7 {[%clk 0:01:41]} 21. bxc5 {[%clk 0:01:07]}  Rxd1+ {[%clk 0:01:31]} 22. Rxd1 {[%clk 0:01:06]}  Bg4 {[%clk 0:01:32]} 23. Rd3 {[%clk 0:01:01]}  Qxc5 {[%clk 0:01:12]} 24. Nd6 {[%clk 0:00:59]}  Qb6 {[%clk 0:01:05]} 25. Qa2 {[%clk 0:00:46]}  Nce7 {[%clk 0:00:55]} 26. a5 {[%clk 0:00:40]}  Qc6 {[%clk 0:00:54]} 27. Qc4 {[%clk 0:00:37]}  fxg3 {[%clk 0:00:49]} 28. hxg3 {[%clk 0:00:36]}  Qxc4 {[%clk 0:00:43]} 29. Nxc4 {[%clk 0:00:35]}  Nc6 {[%clk 0:00:44]} 30. Nfd2 {[%clk 0:00:29]}  Rd8 {[%clk 0:00:38]} 31. Rxd8 {[%clk 0:00:28]}  Nxd8 {[%clk 0:00:39]} 32. Nd6 {[%clk 0:00:28]}  Kf6 {[%clk 0:00:34]} 33. f3 {[%clk 0:00:23]}  Be6 {[%clk 0:00:33]} 34. Bf1 {[%clk 0:00:22]}  h5 {[%clk 0:00:31]} 35. Nb5 {[%clk 0:00:20]}  Nc6 {[%clk 0:00:30]} 36. a6 {[%clk 0:00:17]}  bxa6 {[%clk 0:00:29]} 37. Nc7 {[%clk 0:00:17]}  a5 {[%clk 0:00:28]} 38. Bb5 {[%clk 0:00:17]}  Nge7 {[%clk 0:00:27]} 39. Kf2 {[%clk 0:00:15]}  h4 {[%clk 0:00:26]} 40. gxh4 {[%clk 0:00:14]}  gxh4 {[%clk 0:00:26]} 41. Kg2 {[%clk 0:00:15]}  Bc8 {[%clk 0:00:21]} 42. Nc4 {[%clk 0:00:15]}  Kg5 {[%clk 0:00:19]} 43. Nd6 {[%clk 0:00:15]}  Bd7 {[%clk 0:00:13]} 44. Nf7+ {[%clk 0:00:14]}  Kf4 {[%clk 0:00:11]} 45. Nd5+ {[%clk 0:00:11]}  Nxd5 {[%clk 0:00:11]} 46. exd5 {[%clk 0:00:12]}  Nb8 {[%clk 0:00:12]} 47. Bxd7 {[%clk 0:00:11]}  Nxd7 {[%clk 0:00:11]} 48. Nd6 {[%clk 0:00:11]}  a4 {[%clk 0:00:11]} 49. Nc4 {[%clk 0:00:11]}  h3+ {[%clk 0:00:10]} 50. Kxh3 {[%clk 0:00:10]}  Kxf3 {[%clk 0:00:10]} 51. d6 {[%clk 0:00:11]}  e4 {[%clk 0:00:11]} 52. Nd2+ {[%clk 0:00:11]}  Ke3 {[%clk 0:00:10]} 53. Nc4+ {[%clk 0:00:11]}  Kd3 {[%clk 0:00:10]} 54. Na3 {[%clk 0:00:11]}  Kxc3 {[%clk 0:00:07]} 55. Kg4 {[%clk 0:00:11]}  Kb3 {[%clk 0:00:06]} 56. Nb1 {[%clk 0:00:11]}  a3 {[%clk 0:00:06]} 57. Nd2+ {[%clk 0:00:11]}  Kc2 {[%clk 0:00:05]} 58. Nxe4 {[%clk 0:00:09]}  a2 {[%clk 0:00:05]} 59. Kf5 {[%clk 0:00:07]}  a1=Q {[%clk 0:00:04]} 60. Ke6 {[%clk 0:00:08]}  Qe5+ {[%clk 0:00:04]} 61. Kxd7 {[%clk 0:00:06]}  Qxe4 {[%clk 0:00:05]} 0-1


[Site "https://www.chess.com"]

[Event "Titled Tuesday Blitz August 15 Late 2023"]
[White "Keymer, Vincent"]
[Black "Bjelobrk, Igor"]
[WhiteFideId "12940690"]
[BlackFideId "4300726"]
[WhiteElo "2938"]
[BlackElo "2676"]
[Result "1-0"]
[Round "5"]
[TimeControl "180+1"]
[Date "2023.08.15"]
[WhiteClock "0:00:44"]
[BlackClock "0:00:00"]
[Board "21"]

1. a3 {[%clk 0:03:00]}  d5 {[%clk 0:02:57]} 2. Nf3 {[%clk 0:03:00]}  Nf6 {[%clk 0:02:56]} 3. e3 {[%clk 0:03:01]}  Nbd7 {[%clk 0:02:56]} 4. c4 {[%clk 0:03:01]}  e6 {[%clk 0:02:51]} 5. b4 {[%clk 0:03:01]}  Be7 {[%clk 0:02:47]} 6. Bb2 {[%clk 0:03:01]}  O-O {[%clk 0:02:47]} 7. d4 {[%clk 0:02:55]}  dxc4 {[%clk 0:02:44]} 8. Bxc4 {[%clk 0:02:55]}  b6 {[%clk 0:02:45]} 9. O-O {[%clk 0:02:53]}  Bb7 {[%clk 0:02:44]} 10. Qe2 {[%clk 0:02:51]}  c5 {[%clk 0:02:43]} 11. dxc5 {[%clk 0:02:47]}  bxc5 {[%clk 0:02:41]} 12. b5 {[%clk 0:02:47]}  Qc7 {[%clk 0:02:35]} 13. Nbd2 {[%clk 0:02:43]}  Rfd8 {[%clk 0:02:22]} 14. a4 {[%clk 0:02:38]}  h6 {[%clk 0:02:17]} 15. a5 {[%clk 0:02:30]}  Rab8 {[%clk 0:02:17]} 16. e4 {[%clk 0:02:24]}  Ba8 {[%clk 0:02:03]} 17. Bc3 {[%clk 0:02:20]}  Ng4 {[%clk 0:01:36]} 18. e5 {[%clk 0:02:08]}  h5 {[%clk 0:01:10]} 19. Rad1 {[%clk 0:02:05]}  Nf8 {[%clk 0:01:09]} 20. Bd3 {[%clk 0:01:32]}  Ng6 {[%clk 0:01:00]} 21. Bxg6 {[%clk 0:01:30]}  fxg6 {[%clk 0:01:00]} 22. Ne4 {[%clk 0:01:29]}  Rd5 {[%clk 0:00:44]} 23. h3 {[%clk 0:01:15]}  Nh6 {[%clk 0:00:42]} 24. Neg5 {[%clk 0:00:57]}  Bxg5 {[%clk 0:00:41]} 25. Nxg5 {[%clk 0:00:57]}  Qe7 {[%clk 0:00:42]} 26. Ne4 {[%clk 0:00:56]}  Nf5 {[%clk 0:00:36]} 27. Nd6 {[%clk 0:00:56]}  Nxd6 {[%clk 0:00:28]} 28. exd6 {[%clk 0:00:55]}  Qxd6 {[%clk 0:00:29]} 29. Rfe1 {[%clk 0:00:49]}  Kh7 {[%clk 0:00:22]} 30. Be5 {[%clk 0:00:45]}  Qd8 {[%clk 0:00:12]} 31. Bxb8 {[%clk 0:00:44]}  Qxb8 {[%clk 0:00:13]} 32. Qxe6 {[%clk 0:00:43]}  Rxd1 {[%clk 0:00:10]} 33. Rxd1 {[%clk 0:00:44]}  Qxb5 {[%clk 0:00:00]} 34. Rd8 {[%clk 0:00:44]} 1-0


[Site "https://www.chess.com"]

[Event "Titled Tuesday Blitz August 15 Late 2023"]
[White "Elsa167"]
[Black "Ozdemir, Serhan Berat"]
[BlackFideId "6374611"]
[WhiteElo "2936"]
[BlackElo "2665"]
[Result "1-0"]
[Round "5"]
[TimeControl "180+1"]
[Date "2023.08.15"]
[WhiteClock "0:00:05"]
[BlackClock "0:00:02"]
[Board "22"]

1. d4 {[%clk 0:03:00]}  Nf6 {[%clk 0:03:00]} 2. c4 {[%clk 0:03:01]}  g6 {[%clk 0:02:59]} 3. Nc3 {[%clk 0:03:01]}  Bg7 {[%clk 0:03:00]} 4. e4 {[%clk 0:03:01]}  d6 {[%clk 0:03:01]} 5. h3 {[%clk 0:03:02]}  O-O {[%clk 0:03:01]} 6. Be3 {[%clk 0:03:02]}  c5 {[%clk 0:03:01]} 7. Nf3 {[%clk 0:03:02]}  cxd4 {[%clk 0:02:59]} 8. Nxd4 {[%clk 0:03:03]}  Nc6 {[%clk 0:03:00]} 9. Be2 {[%clk 0:03:02]}  Bd7 {[%clk 0:02:56]} 10. O-O {[%clk 0:03:01]}  Nxd4 {[%clk 0:02:54]} 11. Bxd4 {[%clk 0:03:02]}  Bc6 {[%clk 0:02:55]} 12. Qc2 {[%clk 0:03:02]}  Rc8 {[%clk 0:02:48]} 13. Rad1 {[%clk 0:03:01]}  Nd7 {[%clk 0:02:48]} 14. Bxg7 {[%clk 0:02:54]}  Kxg7 {[%clk 0:02:49]} 15. b3 {[%clk 0:02:50]}  Qa5 {[%clk 0:02:43]} 16. Qb2 {[%clk 0:02:46]}  Kg8 {[%clk 0:02:43]} 17. f4 {[%clk 0:02:43]}  a6 {[%clk 0:02:37]} 18. a4 {[%clk 0:02:36]}  Qb4 {[%clk 0:02:29]} 19. Bg4 {[%clk 0:02:34]}  e6 {[%clk 0:02:06]} 20. Na2 {[%clk 0:02:23]}  Qb6+ {[%clk 0:02:01]} 21. Kh2 {[%clk 0:02:23]}  Bxe4 {[%clk 0:01:59]} 22. a5 {[%clk 0:02:15]}  Qc6 {[%clk 0:01:23]} 23. Nc3 {[%clk 0:02:09]}  h5 {[%clk 0:01:10]} 24. Bf3 {[%clk 0:02:04]}  Bxf3 {[%clk 0:01:10]} 25. Rxf3 {[%clk 0:02:05]}  Rfd8 {[%clk 0:01:02]} 26. f5 {[%clk 0:02:03]}  Qc5 {[%clk 0:00:45]} 27. fxg6 {[%clk 0:01:54]}  Qe5+ {[%clk 0:00:45]} 28. Kh1 {[%clk 0:01:50]}  fxg6 {[%clk 0:00:46]} 29. Qc2 {[%clk 0:01:46]}  Kg7 {[%clk 0:00:42]} 30. Qd2 {[%clk 0:01:31]}  Nc5 {[%clk 0:00:21]} 31. b4 {[%clk 0:01:28]}  Ne4 {[%clk 0:00:18]} 32. Nxe4 {[%clk 0:01:25]}  Qxe4 {[%clk 0:00:18]} 33. Qg5 {[%clk 0:01:20]}  Rd7 {[%clk 0:00:17]} 34. c5 {[%clk 0:00:47]}  d5 {[%clk 0:00:17]} 35. Rdf1 {[%clk 0:00:46]}  Rg8 {[%clk 0:00:10]} 36. Re3 {[%clk 0:00:41]}  Qc4 {[%clk 0:00:07]} 37. Qf6+ {[%clk 0:00:40]}  Kh7 {[%clk 0:00:07]} 38. Rxe6 {[%clk 0:00:39]}  d4 {[%clk 0:00:03]} 39. Rd6 {[%clk 0:00:27]}  Rdg7 {[%clk 0:00:03]} 40. Rxd4 {[%clk 0:00:26]}  Qb5 {[%clk 0:00:04]} 41. Rfd1 {[%clk 0:00:19]}  Qe2 {[%clk 0:00:05]} 42. Rd7 {[%clk 0:00:15]}  Qe3 {[%clk 0:00:05]} 43. R7d5 {[%clk 0:00:08]}  Re7 {[%clk 0:00:04]} 44. Qxe7+ {[%clk 0:00:05]}  Qxe7 {[%clk 0:00:04]} 45. Rd7 {[%clk 0:00:05]}  Rg7 {[%clk 0:00:05]} 46. Rxe7 {[%clk 0:00:06]}  Rxe7 {[%clk 0:00:05]} 47. Rd6 {[%clk 0:00:06]}  Kh6 {[%clk 0:00:06]} 48. Rb6 {[%clk 0:00:05]}  Kg5 {[%clk 0:00:06]} 49. Kh2 {[%clk 0:00:05]}  h4 {[%clk 0:00:06]} 50. Kg1 {[%clk 0:00:04]}  Rf7 {[%clk 0:00:06]} 51. c6 {[%clk 0:00:03]}  bxc6 {[%clk 0:00:06]} 52. Rxc6 {[%clk 0:00:04]}  Rf4 {[%clk 0:00:05]} 53. Rb6 {[%clk 0:00:03]}  Kh6 {[%clk 0:00:04]} 54. b5 {[%clk 0:00:02]}  axb5 {[%clk 0:00:03]} 55. Rxb5 {[%clk 0:00:03]}  Ra4 {[%clk 0:00:04]} 56. Kf2 {[%clk 0:00:03]}  Ra3 {[%clk 0:00:04]} 57. Rc5 {[%clk 0:00:03]}  g5 {[%clk 0:00:04]} 58. Rc6+ {[%clk 0:00:03]}  Kh5 {[%clk 0:00:04]} 59. a6 {[%clk 0:00:04]}  g4 {[%clk 0:00:02]} 60. hxg4+ {[%clk 0:00:04]}  Kxg4 {[%clk 0:00:03]} 61. Ke2 {[%clk 0:00:03]}  Ra2+ {[%clk 0:00:03]} 62. Kd3 {[%clk 0:00:04]}  Rxg2 {[%clk 0:00:04]} 63. Rg6+ {[%clk 0:00:04]}  Kh3 {[%clk 0:00:04]} 64. Rxg2 {[%clk 0:00:04]}  Kxg2 {[%clk 0:00:04]} 65. a7 {[%clk 0:00:05]}  h3 {[%clk 0:00:05]} 66. a8=Q+ {[%clk 0:00:06]}  Kg1 {[%clk 0:00:06]} 67. Qa1+ {[%clk 0:00:06]}  Kg2 {[%clk 0:00:06]} 68. Qg7+ {[%clk 0:00:06]}  Kf1 {[%clk 0:00:05]} 69. Qg3 {[%clk 0:00:05]}  h2 {[%clk 0:00:02]} 70. Qxh2 {[%clk 0:00:05]} 1-0


[Site "https://www.chess.com"]